fUST/lending_fUST_20240213
["ID","MTS","AMOUNT","RATE_DAILY","PERIOD"]
[313911711,1707814238665,-500.0,0.00036373,14]
[313911712,1707814238674,-500.0,0.00036373,14]
[313911713,1707814238683,-500.0,0.00036373,14]
[313911714,1707814238693,-500.0,0.00036373,14]
[313911715,1707814238703,-500.0,0.00036373,14]
[313911716,1707814238712,-322.01702261,0.00036373,14]
[313911717,1707814238720,-500.0,0.00036373,14]
[313911718,1707814238729,-205.76,0.00036373,14]
[313911719,1707814238739,-500.0,0.00036373,14]
[313911720,1707814238748,-500.0,0.00036373,14]
[313911721,1707814238757,-481.68151431,0.00036373,4]
[313911722,1707814238766,-154.90705577,0.00036374,4]
[313911723,1707814238776,-1746.80219385,0.00036374,4]
[313911724,1707814238785,-1434.86449475,0.00036374,4]
[313911725,1707814238794,-1948.38142312,0.00036374,4]
[313911726,1707814238803,-20944.3104518,0.00036374,4]
[313911727,1707814238813,-6113.4447999,0.00036374,4]
[313911728,1707814238822,-154.90705577,0.00036374,4]
[313911729,1707814238840,-154.9703223,0.00036374,4]
[313911730,1707814238852,-500.0,0.00036374,4]
[313911731,1707814238862,-18968.39606022,0.00036374,4]
[313911732,1707814238871,-240.26245834,0.00036375,4]
[313911733,1707814238881,-5544.6692285,0.00036395,2]
[313911734,1707814238891,-3746.44530431,0.00036395,4]
[313911735,1707814238900,-381.93788097,0.00036395,4]
[313911736,1707814238910,-1961.94163712,0.00036425,4]
[313911737,1707814238920,-330.65475159,0.00036426,4]
[313911738,1707814238930,-261.28,0.0003643,14]
[313911739,1707814238942,-250.0,0.0003643,5]
[313911740,1707814238951,-500.0,0.0003643,14]
[313911741,1707814238962,-500.0,0.0003643,14]
[313911742,1707814238971,-500.0,0.0003643,14]
[313911743,1707814238981,-500.0,0.0003643,14]
[313911744,1707814238990,-500.0,0.0003643,14]
[313911745,1707814238999,-500.0,0.0003643,14]
[313911746,1707814239008,-500.0,0.0003643,14]
[313911747,1707814239018,-500.0,0.0003643,14]
[313911748,1707814239027,-500.0,0.0003643,14]
[313911749,1707814239037,-500.0,0.0003643,14]
[313911750,1707814239046,-500.0,0.0003643,14]
[313911751,1707814239055,-500.0,0.0003643,14]
[313911752,1707814239064,-500.0,0.0003643,14]
[313911753,1707814239074,-500.0,0.0003643,14]
[313911754,1707814239083,-500.0,0.0003643,14]
[313911755,1707814239093,-309.58367108,0.0003643,14]
[313911756,1707814239102,-16099.03814373,0.00036435,2]
[313911757,1707814239113,-6316.14108144,0.00036435,2]
[313911758,1707814239122,-222.47630342,0.00036435,10]
[313911759,1707814239131,-150.7866263,0.00036435,2]
[313911760,1707814239140,-150.0,0.00036435,2]
[313911761,1707814239150,-1180.8199886,0.00036435,14]
[313911762,1707814239159,-1010.87257408,0.00036435,10]
[313911763,1707814239169,-173055.19838637,0.00036435,2]
[313911764,1707814239178,-3157.67364233,0.00036435,5]
[313911765,1707814239188,-169949.71827956,0.00036435,2]
[313911766,1707814239254,-4134.8726845,0.00036435,2]
[313911767,1707814239264,-278.71703923,0.00036435,2]
[313911768,1707814239273,-537.05526238,0.00036435,7]
[313911769,1707814239285,-1000.47250236,0.00036435,7]
[313911770,1707814239297,-708.47223526,0.00036435,7]
[313911771,1707814239306,-346.15595643,0.00036435,14]
[313911772,1707814239315,-169.48023119,0.00036435,2]
[313911773,1707814239324,-5371.16174867,0.00036435,2]
[313911774,1707814239333,-805.91264558,0.00036435,2]
[313911775,1707814239343,-10078.34076261,0.00036435,30]
[313911787,1707814241351,-154.84515485,0.00035335,6]
[313911788,1707814241361,-10065.84150998,0.00036435,30]
[313911789,1707814241370,-1075.45390713,0.00036435,30]
[313911790,1707814241379,-14.32751802,0.00036435,30]
[313911791,1707814241392,-3771.30166549,0.00036435,30]
[313911792,1707814241402,-6258.09833451,0.00036435,30]
[313911793,1707814241413,-620.43767086,0.00036435,30]
[313911794,1707814241424,-2059.09305599,0.00036435,30]
[313911795,1707814241436,-5021.32712817,0.00036435,30]
[313911796,1707814241463,-1596.69818473,0.00036435,30]
[313911809,1707814243165,-518.325847,0.00036435,30]
[313911841,1707814246343,-152.85030189,0.00036435,30]
[313911842,1707814246355,-8070.23849331,0.00036435,30]
[313911843,1707814246367,-451.25,0.00036435,30]
[313911844,1707814246379,-1612.43959999,0.00036435,30]
[313911851,1707814450012,669.69137857,0.000125,2]
[313911857,1707814755232,-153.0,0.00029755,2]
[313911859,1707814820010,-481.99435085,0.00029105,2]
[313911860,1707814820032,-296.0451629,0.00029106,2]
[313911861,1707814820054,-1435.25522947,0.00029106,2]
[313911862,1707814820080,-330.86032515,0.00029106,2]
[313911863,1707814820101,-250.0,0.00029107,2]
[313911864,1707814820122,-590.62215999,0.00029193,2]
[313911865,1707814820143,-273.45700158,0.00029194,2]
[313911866,1707814820167,-690.59003309,0.00029194,2]
[313911867,1707814820188,-500.0,0.00029194,2]
[313911868,1707814820209,-200.0,0.00029195,2]
[313911869,1707814820335,-766.53439085,0.00029755,2]
[313911870,1707814820356,-1.84515485,0.00029755,2]
[313911871,1707814820377,-2169.79619127,0.00029756,2]
[313911872,1707814884368,-7905.06057793,0.00029,2]
[313911873,1707814884389,-500.0,0.00029104,2]
[313911874,1707814884411,-837.46611305,0.00029755,2]
[313911875,1707814884431,-6115.08830306,0.00029755,2]
[313911876,1707814884454,-5586.38500596,0.00029755,2]
[313911895,1707815345095,-16592.77285,0.00028049,2]
[313911896,1707815349121,-37099.20039005,0.00028048,2]
[313911897,1707815349144,-5282.95746006,0.00028048,2]
[313911898,1707815349164,-4358.08719502,0.00028049,2]
[313911899,1707815349186,-3660.66,0.0002805,3]
[313911900,1707815349209,-27992.32103487,0.0002806,2]
[313911909,1707815356083,-46636.9476536,0.0002806,2]
[313911910,1707815357105,-6617.74597867,0.0002806,2]
[313911911,1707815365138,-2756.53003991,0.0002806,2]
[313911912,1707815365160,-8807.2714155,0.00028063,2]
[313911913,1707815365182,-168.6358621,0.00028209,2]
[313911914,1707815365202,-191.218327,0.00028489,2]
[313911915,1707815365223,-250.0,0.00028489,2]
[313911916,1707815365244,-3547.1013321,0.00029073,2]
[313911917,1707815365265,-258.63768419,0.0002912,2]
[313911918,1707815365285,-3050.55,0.00029212,3]
[313911919,1707815365310,-10381.67975982,0.00029222,2]
[313912007,1707815432244,-104.50564888,0.00029222,2]
[313912010,1707815432254,-276.82742723,0.00029755,2]
[313912013,1707815432263,-1315.01727448,0.0002989,4]
[313912017,1707815432275,-2593.4216813,0.0002989,4]
[313912020,1707815432285,-7875.046286,0.0003011,2]
[313912023,1707815432294,-293.0,0.000308,2]
[313912025,1707815432303,-7576.02616176,0.000308,45]
[313912027,1707815432312,-258.63768417,0.00030924,2]
[313912029,1707815432322,-1616.9,0.0003199,3]
[313912031,1707815432331,-49994.75055119,0.00032,15]
[313912033,1707815432340,-323.23489928,0.0003231,4]
[313912035,1707815432351,-258.63768417,0.00032728,2]
[313912036,1707815432360,-2550.0,0.00033,2]
[313912039,1707815432370,-155.0,0.00033,2]
[313912041,1707815432379,-200.0,0.00033119,15]
[313912043,1707815432388,-2550.0,0.00033151,2]
[313912045,1707815432398,-999.69354747,0.00033236,2]
[313912047,1707815432407,-2550.0,0.00033425,2]
[313912049,1707815432417,-2550.0,0.00033699,2]
[313912050,1707815432426,-2550.0,0.00033973,2]
[313912052,1707815432435,-2550.0,0.00034247,2]
[313912055,1707815432445,-11800.35511844,0.00034334,4]
[313912057,1707815432455,-1479.31226009,0.00034335,2]
[313912059,1707815432464,-4.63578379,0.00034521,2]
[313912078,1707815438310,-7098.02345881,0.00034333,2]
[313912079,1707815438319,-393.65261641,0.00034521,2]
[313912080,1707815438332,-2151.7115998,0.00034521,2]
[313912081,1707815438341,-155.0,0.00034521,2]
[313912082,1707815438351,-258.63768417,0.00034531,2]
[313912083,1707815438360,-777.0,0.00034978,2]
[313912084,1707815438369,-1533.16044773,0.00035,4]
[313912085,1707815438378,-150.0,0.00035,7]
[313912086,1707815438388,-154.84515485,0.00035,6]
[313912087,1707815438398,-847.02589561,0.00035,2]
[313912088,1707815438407,-3178.94197878,0.0003534,10]
[313912089,1707815438417,-284.90696732,0.00035548,2]
[313912090,1707815438426,-500.0,0.00035616,2]
[313912091,1707815438435,-500.0,0.00035616,14]
[313912092,1707815438444,-500.0,0.00035616,14]
[313912093,1707815438454,-500.0,0.00035616,14]
[313912094,1707815438463,-201.73772171,0.00035616,2]
[313912095,1707815438475,-298.26227829,0.00035616,2]
[313912096,1707815438484,-535.41027973,0.00035616,14]
[313912097,1707815438494,-500.0,0.00035616,14]
[313912098,1707815438504,-500.0,0.00035616,14]
[313912099,1707815438513,-500.0,0.00035616,14]
[313912100,1707815438523,-500.0,0.00035616,14]
[313912101,1707815438532,-500.0,0.00035616,14]
[313912102,1707815438542,-507.68334626,0.00035616,14]
[313912103,1707815438551,-500.0,0.00035616,14]
[313912104,1707815438561,-322.01702261,0.00035616,14]
[313912105,1707815438571,-500.0,0.00035616,14]
[313912106,1707815438580,-539.61995425,0.00035616,14]
[313912107,1707815438589,-500.0,0.00035616,14]
[313912108,1707815438598,-443.82,0.00035616,14]
[313912109,1707815438608,-177.08982446,0.00035616,14]
[313912110,1707815438617,-500.0,0.00035616,14]
[313912111,1707815438626,-500.0,0.00035616,14]
[313912112,1707815438636,-291.46716292,0.00035616,14]
[313912113,1707815438646,-500.0,0.00035616,14]
[313912114,1707815438656,-500.0,0.00035616,14]
[313912115,1707815438666,-500.0,0.00035616,14]
[313912116,1707815438675,-500.0,0.00035616,14]
[313912117,1707815438684,-500.0,0.00035616,14]
[313912118,1707815438694,-500.0,0.00035616,14]
[313912119,1707815438703,-500.0,0.00035616,14]
[313912120,1707815438712,-500.0,0.00035616,14]
[313912121,1707815438721,-500.0,0.00035616,14]
[313912122,1707815438731,-500.0,0.00035616,14]
[313912123,1707815438740,-638.78,0.00035616,14]
[313912124,1707815438750,-502.52019271,0.00035616,14]
[313912125,1707815438760,-500.0,0.00035616,14]
[313912126,1707815438885,-500.0,0.00035616,14]
[313912127,1707815438895,-500.0,0.00035616,14]
[313912128,1707815438906,-687.71,0.00035616,14]
[313912129,1707815438916,-687.71,0.00035616,14]
[313912130,1707815438926,-687.71,0.00035616,14]
[313912131,1707815438937,-687.71,0.00035616,14]
[313912132,1707815438947,-687.71,0.00035616,14]
[313912133,1707815438957,-687.71,0.00035616,14]
[313912134,1707815438966,-687.71,0.00035616,14]
[313912135,1707815438975,-687.71,0.00035616,14]
[313912136,1707815438985,-577.05374795,0.00035616,14]
[313912137,1707815438995,-500.0,0.00035616,14]
[313912138,1707815439004,-500.0,0.00035616,14]
[313912139,1707815439013,-500.0,0.00035616,14]
[313912140,1707815439023,-500.0,0.00035616,14]
[313912141,1707815439033,-500.0,0.00035616,14]
[313912142,1707815439042,-500.0,0.00035616,14]
[313912143,1707815439051,-500.0,0.00035616,14]
[313912144,1707815439062,-1463.57,0.00035616,14]
[313912145,1707815439072,-1463.57,0.00035616,14]
[313912146,1707815439082,-1463.57,0.00035616,14]
[313912147,1707815439092,-1463.57,0.00035616,14]
[313912148,1707815439101,-1463.57,0.00035616,14]
[313912149,1707815439112,-1463.57,0.00035616,14]
[313912150,1707815439121,-1463.57,0.00035616,14]
[313912151,1707815439131,-1463.57,0.00035616,14]
[313912152,1707815439141,-500.0,0.00035616,14]
[313912153,1707815439150,-500.0,0.00035616,14]
[313912154,1707815439159,-500.0,0.00035616,14]
[313912155,1707815439169,-500.0,0.00035616,14]
[313912156,1707815439178,-625.91703591,0.00035616,14]
[313912157,1707815439187,-500.0,0.00035616,14]
[313912158,1707815439196,-528.0022967,0.00035616,14]
[313912159,1707815439205,-1000.0,0.00035616,2]
[313912160,1707815439215,-500.0,0.00035616,14]
[313912161,1707815439224,-500.0,0.00035616,14]
[313912162,1707815439233,-500.0,0.00035616,14]
[313912163,1707815439242,-500.0,0.00035616,14]
[313912164,1707815439251,-500.0,0.00035616,14]
[313912165,1707815439261,-500.0,0.00035616,14]
[313912166,1707815439270,-500.0,0.00035616,14]
[313912167,1707815439279,-500.0,0.00035616,14]
[313912168,1707815439289,-500.0,0.00035616,14]
[313912169,1707815439298,-500.0,0.00035616,14]
[313912170,1707815439306,-500.0,0.00035616,14]
[313912171,1707815439315,-500.0,0.00035616,14]
[313912172,1707815439325,-153.06,0.00035616,14]
[313912173,1707815439334,-500.0,0.00035616,14]
[313912174,1707815439343,-380.32,0.00035616,14]
[313912175,1707815439353,-500.0,0.00035616,14]
[313912176,1707815439362,-500.0,0.00035616,14]
[313912177,1707815439373,-500.0,0.00035616,14]
[313912178,1707815439383,-500.0,0.00035616,14]
[313912179,1707815439392,-500.0,0.00035616,14]
[313912180,1707815439401,-500.0,0.00035616,14]
[313912181,1707815439413,-500.0,0.00035616,14]
[313912182,1707815439422,-500.0,0.00035616,14]
[313912183,1707815439430,-500.0,0.00035616,14]
[313912184,1707815439439,-500.0,0.00035616,14]
[313912185,1707815439449,-500.0,0.00035616,14]
[313912186,1707815439458,-500.0,0.00035616,14]
[313912187,1707815439467,-500.0,0.00035616,14]
[313912188,1707815439477,-500.0,0.00035616,14]
[313912189,1707815439486,-631.17,0.00035616,14]
[313912190,1707815439496,-500.0,0.00035616,2]
[313912191,1707815439506,-500.0,0.00035616,14]
[313912192,1707815439515,-500.0,0.00035616,14]
[313912193,1707815439524,-464.21,0.00035616,14]
[313912194,1707815439532,-500.0,0.00035616,14]
[313912195,1707815439542,-500.0,0.00035616,14]
[313912196,1707815439552,-500.0,0.00035616,14]
[313912197,1707815439562,-500.0,0.00035616,7]
[313912198,1707815439571,-500.0,0.00035616,14]
[313912199,1707815439580,-500.0,0.00035616,14]
[313912200,1707815439589,-500.0,0.00035616,14]
[313912201,1707815439598,-432.47,0.00035616,14]
[313912202,1707815439608,-500.0,0.00035616,14]
[313912203,1707815439617,-500.0,0.00035616,14]
[313912204,1707815439627,-500.0,0.00035616,14]
[313912205,1707815439638,-500.0,0.00035616,14]
[313912206,1707815439647,-500.0,0.00035616,14]
[313912207,1707815439656,-500.0,0.00035616,14]
[313912208,1707815439667,-500.0,0.00035616,14]
[313912209,1707815439677,-500.0,0.00035616,14]
[313912210,1707815439687,-500.0,0.00035616,14]
[313912211,1707815439697,-500.0,0.00035616,14]
[313912212,1707815439708,-500.0,0.00035616,14]
[313912213,1707815439717,-500.0,0.00035616,14]
[313912214,1707815439728,-500.0,0.00035616,14]
[313912215,1707815439737,-500.0,0.00035616,14]
[313912216,1707815439748,-500.0,0.00035616,14]
[313912217,1707815439757,-489.79555172,0.00035616,14]
[313912218,1707815439768,-500.0,0.00035616,14]
[313912219,1707815439779,-500.0,0.00035616,14]
[313912220,1707815439789,-541.36,0.00035616,14]
[313912221,1707815439799,-500.0,0.00035616,14]
[313912222,1707815439808,-500.0,0.00035616,14]
[313912223,1707815439818,-500.0,0.00035616,14]
[313912224,1707815439828,-500.0,0.00035616,14]
[313912225,1707815439838,-500.0,0.00035616,7]
[313912226,1707815439847,-175.26370295,0.00035616,14]
[313912227,1707815439856,-500.0,0.00035616,14]
[313912228,1707815439865,-500.0,0.00035616,14]
[313912229,1707815439875,-500.0,0.00035616,14]
[313912230,1707815439888,-500.0,0.00035616,14]
[313912231,1707815439898,-500.0,0.00035616,14]
[313912232,1707815439907,-500.0,0.00035616,14]
[313912233,1707815439918,-500.0,0.00035616,14]
[313912234,1707815439927,-500.0,0.00035616,14]
[313912235,1707815439936,-500.0,0.00035616,14]
[313912236,1707815439945,-2550.0,0.00035901,2]
[313912237,1707815439955,-1000.0,0.00036,36]
[313912238,1707815439965,-153.0,0.00036,2]
[313912239,1707815439975,-19148.7409661,0.00036125,4]
[313912240,1707815439984,-2563.0,0.00036247,2]
[313912241,1707815439994,-157.0,0.00036247,2]
[313912242,1707815440004,-156.00429501,0.00036248,4]
[313912243,1707815440014,-258.63768417,0.00036335,2]
[313912244,1707815440023,-1463.57,0.00036335,14]
[313912245,1707815440033,-500.0,0.00036335,14]
[313912246,1707815440042,-250.0,0.0003637,5]
[313912247,1707815440052,-687.71,0.0003637,14]
[313912248,1707815440062,-500.0,0.0003637,14]
[313912249,1707815440071,-500.0,0.0003637,14]
[313912250,1707815440081,-500.0,0.00036371,14]
[313912251,1707815440090,-500.0,0.00036371,14]
[313912252,1707815440100,-500.0,0.00036371,14]
[313912253,1707815440109,-284.9,0.00036371,14]
[313912254,1707815440119,-496.66696298,0.00036372,14]
[313912255,1707815440128,-500.0,0.00036372,7]
[313912256,1707815440138,-500.0,0.00036372,7]
[313912257,1707815440147,-500.0,0.00036372,14]
[313912258,1707815440156,-507.0582471,0.00036372,14]
[313912259,1707815440166,-461.69581788,0.00036372,14]
[313912260,1707815440175,-500.0,0.00036372,14]
[313912261,1707815440184,-500.0,0.00036372,14]
[313912262,1707815440194,-287.61429276,0.00036372,14]
[313912263,1707815440203,-500.0,0.00036372,14]
[313912264,1707815440213,-500.0,0.00036372,14]
[313912265,1707815440223,-500.0,0.00036372,14]
[313912266,1707815440232,-500.0,0.00036372,14]
[313912267,1707815440242,-500.0,0.00036372,2]
[313912268,1707815440251,-500.0,0.00036372,14]
[313912269,1707815440260,-500.0,0.00036372,14]
[313912270,1707815440270,-500.0,0.00036372,14]
[313912271,1707815440280,-500.0,0.00036372,14]
[313912272,1707815440291,-500.0,0.00036372,14]
[313912273,1707815440302,-631.18458791,0.00036372,14]
[313912274,1707815440312,-500.0,0.00036372,14]
[313912275,1707815440324,-421.73071136,0.00036372,14]
[313912276,1707815440335,-271.50812814,0.00036372,14]
[313912277,1707815440344,-500.0,0.00036372,14]
[313912278,1707815440353,-500.0,0.00036372,14]
[313912279,1707815440363,-500.0,0.00036372,14]
[313912280,1707815440373,-500.0,0.00036372,14]
[313912281,1707815440383,-505.88080911,0.00036372,14]
[313912282,1707815440393,-351.82,0.00036373,14]
[313912283,1707815440402,-1463.57,0.00036423,14]
[313912284,1707815440414,-1823.15288158,0.00036424,2]
[313912285,1707815440423,-687.71,0.00036428,14]
[313912286,1707815440434,-500.0,0.00036429,14]
[313912287,1707815440444,-500.0,0.00036429,14]
[313912288,1707815440455,-500.0,0.00036429,14]
[313912289,1707815440465,-500.0,0.00036429,14]
[313912290,1707815440474,-1298.14280611,0.00036429,4]
[313912291,1707815440483,-1018.94351989,0.00036429,4]
[313912293,1707815440493,-261.22503123,0.00036429,4]
[313912295,1707815440502,-155.27640177,0.00036429,4]
[313912296,1707815440513,-212.18771165,0.00036429,4]
[313912297,1707815440522,-154.90705577,0.0003643,4]
[313912299,1707815440531,-154.90705577,0.0003643,4]
[313912301,1707815440540,-562.97937755,0.0003643,4]
[313912303,1707815440549,-154.90705577,0.0003643,4]
[313912304,1707815440558,-155.09676156,0.0003643,4]
[313912306,1707815440567,-155.49505855,0.0003643,4]
[313912307,1707815440576,-646.79208835,0.0003643,4]
[313912308,1707815440585,-155.11635091,0.0003643,4]
[313912309,1707815440594,-280.0,0.00036431,15]
[313912310,1707815440603,-687.71,0.00036433,14]
[313912311,1707815440611,-257.52,0.00036433,14]
[313912312,1707815440620,-1463.57,0.00036433,14]
[313912313,1707815440629,-404.93,0.00036433,14]
[313912314,1707815440639,-500.0,0.00036433,14]
[313912315,1707815440648,-500.0,0.00036433,14]
[313912316,1707815440657,-500.0,0.00036433,14]
[313912317,1707815440666,-500.0,0.00036433,14]
[313912318,1707815440676,-500.0,0.00036433,14]
[313912319,1707815440685,-3746.44530431,0.00036433,4]
[313912320,1707815440695,-1961.94163712,0.00036433,4]
[313912321,1707815440704,-154.9703223,0.00036433,4]
[313912322,1707815440715,-18968.39606022,0.00036433,4]
[313912323,1707815440725,-155.17662558,0.00036433,4]
[313912324,1707815440735,-225.3408234,0.00036433,2]
[313912325,1707815440745,-154.90705577,0.00036433,4]
[313912326,1707815440755,-1948.38142312,0.00036433,4]
[313912327,1707815440767,-154.90705577,0.00036433,4]
[313912328,1707815440776,-1746.80219385,0.00036433,4]
[313912329,1707815440787,-154.90705577,0.00036433,4]
[313912330,1707815440796,-651.93131844,0.00036433,4]
[313912331,1707815440806,-535.79408158,0.00036433,4]
[313912332,1707815440816,-154.90705577,0.00036433,4]
[313912333,1707815440826,-687.71,0.00036434,14]
[313912334,1707815440836,-500.0,0.00036434,14]
[313912335,1707815440846,-500.0,0.00036434,14]
[313912336,1707815440857,-240.26245834,0.00036435,4]
[313912337,1707815440866,-311.0,0.00036488,4]
[313912338,1707815440877,-687.71,0.00036489,14]
[313912339,1707815440892,-1463.57,0.00036489,14]
[313912340,1707815440902,-500.0,0.00036489,14]
[313912341,1707815440911,-2884.98919231,0.0003649,4]
[313912342,1707815440922,-578.69815764,0.0003649,4]
[313912343,1707815440932,-481.52509604,0.0003649,4]
[313912344,1707815440941,-1434.47376003,0.0003649,4]
[313912345,1707815440950,-356.26222728,0.0003649,4]
[313912346,1707815440962,-695.56015363,0.0003649,4]
[313912347,1707815440972,-5218.70563111,0.0003649,4]
[313912348,1707815440981,-7945.72540381,0.0003649,2]
[313912349,1707815440990,-1463.57,0.0003649,14]
[313912350,1707815441001,-500.0,0.0003649,14]
[313912351,1707815441010,-168.31831634,0.00036491,4]
[313912352,1707815441019,-590.28984477,0.00036491,4]
[313912353,1707815441029,-295.86387098,0.00036491,4]
[313912354,1707815441038,-687.71,0.00036491,14]
[313912355,1707815441047,-687.71,0.00036491,14]
[313912356,1707815441056,-687.71,0.00036491,14]
[313912357,1707815441065,-687.71,0.00036491,14]
[313912358,1707815441075,-687.71,0.00036491,14]
[313912359,1707815441085,-687.71,0.00036491,14]
[313912360,1707815441095,-687.71,0.00036491,14]
[313912361,1707815441104,-687.71,0.00036491,14]
[313912362,1707815441114,-687.71,0.00036491,14]
[313912363,1707815441123,-687.71,0.00036491,14]
[313912364,1707815441132,-687.87367108,0.00036491,14]
[313912365,1707815441141,-500.0,0.00036491,14]
[313912366,1707815441151,-500.0,0.00036491,14]
[313912367,1707815441160,-500.0,0.00036491,14]
[313912368,1707815441170,-500.0,0.00036491,14]
[313912369,1707815441179,-500.0,0.00036491,14]
[313912370,1707815441188,-500.0,0.00036491,14]
[313912371,1707815441197,-500.0,0.00036491,14]
[313912372,1707815441207,-500.0,0.00036491,14]
[313912373,1707815441217,-500.0,0.00036491,14]
[313912374,1707815441226,-304.53,0.00036491,14]
[313912375,1707815441235,-500.0,0.00036491,14]
[313912376,1707815441246,-500.0,0.00036491,14]
[313912377,1707815441255,-500.0,0.00036491,14]
[313912378,1707815441264,-500.0,0.00036491,14]
[313912379,1707815441273,-500.0,0.00036491,14]
[313912380,1707815441282,-500.0,0.00036491,14]
[313912382,1707815441291,-500.0,0.00036491,14]
[313912384,1707815441300,-500.0,0.00036491,14]
[313912386,1707815441309,-587.3,0.00036491,14]
[313912388,1707815441318,-151.0,0.00036548,2]
[313912390,1707815441327,-1463.57,0.00036548,14]
[313912392,1707815441336,-1463.57,0.00036548,14]
[313912393,1707815441345,-1463.57,0.00036548,14]
[313912394,1707815441430,-1463.57,0.00036548,14]
[313912395,1707815441441,-1463.57,0.00036548,14]
[313912396,1707815441450,-1463.57,0.00036548,14]
[313912398,1707815441460,-1463.57,0.00036548,14]
[313912400,1707815441470,-1463.57,0.00036548,14]
[313912402,1707815441480,-1463.57,0.00036548,14]
[313912403,1707815441489,-1463.57,0.00036548,14]
[313912405,1707815441500,-1463.65045536,0.00036548,14]
[313912406,1707815441510,-500.0,0.00036548,14]
[313912407,1707815441520,-500.0,0.00036548,14]
[313912408,1707815441529,-500.0,0.00036548,14]
[313912409,1707815441540,-500.0,0.00036548,14]
[313912410,1707815441550,-500.0,0.00036548,14]
[313912411,1707815441560,-500.0,0.00036548,14]
[313912412,1707815441570,-246.69480672,0.00036548,14]
[313912413,1707815441580,-14067.13699455,0.00036548,4]
[313912414,1707815441591,-20937.76085858,0.00036549,4]
[313912415,1707815441602,-47726.63560689,0.00036549,4]
[313912416,1707815441612,-164061.48244028,0.0003655,30]
[313912417,1707815441666,-4759.49664925,0.0003655,30]
[313912418,1707815441677,-996.17784019,0.0003655,30]
[313912419,1707815441689,-2714.50424391,0.0003655,30]
[313912420,1707815441702,-3989.53141484,0.0003655,30]
[313912421,1707815441715,-99330.2067461,0.0003655,30]
[313912422,1707815441752,-3815.04502684,0.0003655,30]
[313912423,1707815441764,-1017.85112563,0.0003655,30]
[313912432,1707815443322,-2663.6,0.00036538,3]
[313912433,1707815443331,-2346.40000002,0.0003655,30]
[313912434,1707815443381,-333.92645003,0.0003655,30]
[313912471,1707815446442,-276.82742723,0.00029222,2]
[313912472,1707815446453,-157434.16910345,0.0003655,30]
[313912473,1707815446466,-1369.57624575,0.0003655,30]
[313912474,1707815446478,-1721.4188608,0.0003655,30]
[313912475,1707815446490,-31243.70037253,0.0003655,30]
[313912481,1707816346893,-484.15245738,0.00032894,30]
[313912482,1707816346964,-1000.0,0.00036,36]
[313912483,1707816347000,-150.5,0.00036518,35]
[313912484,1707816347022,-150.5,0.00036528,35]
[313912485,1707816347043,-185.85,0.00036528,35]
[313912486,1707816347063,-150.5,0.00036538,35]
[313912487,1707816347083,-150.5,0.00036538,35]
[313912488,1707816347143,-285.660061,0.000357,30]
[313912489,1707816347192,-285.660061,0.000357,30]
[313912490,1707816382341,150.83408251,0.00031954,30]
[313912491,1707816450147,24900.0,0.0002035,2]
[313912492,1707816465039,598.31482155,0.00036,36]
[313912493,1707816465065,401.68517845,0.00036,36]
[313912494,1707816549124,-1019.25952196,0.00021236,2]
[313912495,1707816549144,-330.86032515,0.00021236,2]
[313912496,1707816549165,-535.94317616,0.00021237,2]
[313912497,1707816549186,-296.0451629,0.00021238,2]
[313912498,1707816549209,-563.70112892,0.00021238,2]
[313912499,1707816549228,-154.84515485,0.00021238,2]
[313912500,1707816549248,-154.82968734,0.00021238,2]
[313912501,1707816549269,-154.84515485,0.00021239,2]